fUST/lending_fUST_20260626
["ID","MTS","AMOUNT","RATE_DAILY","PERIOD"]
[426498281,1782483049000,-500.0,0.00038028,30]
[426498293,1782483049000,-67.3699753,0.00038985,30]
[426498302,1782483049000,-202.0,0.0004,2]
[426498268,1782483049000,-202.0,0.00036,2]
[426498266,1782483049000,-445.0,0.00035611,2]
[426498258,1782483049000,-500.0,0.00024649,2]
[426498264,1782483049000,-245.59831738,0.00034501,30]
[426498261,1782483049000,-500.0,0.00031795,30]
[426498262,1782483049000,-560.76676071,0.00031795,30]
[426498277,1782483049000,-202.0,0.00038,2]
[426498263,1782483049000,-161.69283176,0.00034501,30]
[426498259,1782483049000,-500.0,0.00024649,2]
[426498260,1782483049000,-500.0,0.00031795,30]
[426498256,1782483049000,-500.0,0.00013698,2]
[426498257,1782483049000,-500.0,0.00013698,2]
[426498265,1782483049000,-174.0,0.00035514,120]
[426498282,1782483049000,-603.11544224,0.0003803,3]
[426498278,1782483049000,-388.0,0.00038,2]
[426498288,1782483049000,-1000.0,0.00038356,120]
[426498301,1782483049000,-257.82989952,0.00039863,3]
[426498269,1782483049000,-388.0,0.00036,2]
[426498291,1782483049000,-432.6300247,0.00038985,30]
[426498273,1782483049000,-1843.0,0.00037411,2]
[426498300,1782483049000,-1100.0,0.000398,60]
[426498284,1782483049000,-151.0,0.00038106,7]
[426498303,1782483049000,-300.0,0.00040203,72]
[426498283,1782483049000,-2000.0,0.00038106,7]
[426498276,1782483049000,-500.0,0.00037986,30]
[426498271,1782483049000,-388.0,0.00037,2]
[426498294,1782483049000,-272.69,0.00038986,30]
[426498272,1782483049000,-174.0,0.00037289,120]
[426498299,1782483049000,-163.0,0.00039347,120]
[426498279,1782483049000,-500.0,0.00038028,30]
[426498274,1782483049000,-2213.0,0.00037411,2]
[426498290,1782483049000,-500.0,0.00038984,30]
[426498305,1782483049000,-151.0,0.00040241,30]
[426498287,1782483049000,-231.37852056,0.00038323,15]
[426498286,1782483049000,-1768.62147944,0.00038323,15]
[426498280,1782483049000,-500.0,0.00038028,30]
[426498295,1782483049000,-202.0,0.00039,2]
[426498275,1782483049000,-163.0,0.00037473,120]
[426498270,1782483049000,-202.0,0.00037,2]
[426498311,1782483050000,-168.3888056,0.00040241,30]
[426498322,1782483050000,-153.81072347,0.00040241,30]
[426498316,1782483050000,-1272.06033477,0.00040241,30]
[426498312,1782483050000,-1182.9059,0.00040241,30]
[426498309,1782483050000,-162.380719,0.00040241,30]
[426498321,1782483050000,-153.81072347,0.00040241,30]
[426498314,1782483050000,-1226.6734183,0.00040241,30]
[426498332,1782483050000,-177.8,0.00040334,3]
[426498320,1782483050000,-153.81072347,0.00040241,30]
[426498317,1782483050000,-434.15613542,0.00040241,30]
[426498330,1782483050000,-5000.0,0.000403,60]
[426498326,1782483050000,-153.81072347,0.00040241,30]
[426498333,1782483050000,-71.08219583,0.00040334,3]
[426498329,1782483050000,-153.81072353,0.00040241,30]
[426498315,1782483050000,-294.51653743,0.00040241,30]
[426498318,1782483050000,-153.81072347,0.00040241,30]
[426498323,1782483050000,-153.81072347,0.00040241,30]
[426498308,1782483050000,-1100.0,0.00040241,30]
[426498325,1782483050000,-153.81072347,0.00040241,30]
[426498328,1782483050000,-153.81072347,0.00040241,30]
[426498331,1782483050000,-379.91363399,0.00040306,2]
[426498327,1782483050000,-153.81072347,0.00040241,30]
[426498324,1782483050000,-153.81072347,0.00040241,30]
[426498310,1782483050000,-1140.7,0.00040241,30]
[426498307,1782483050000,-156.587,0.00040241,30]
[426498313,1782483050000,-174.61919141,0.00040241,30]
[426498319,1782483050000,-153.81072347,0.00040241,30]
[426498306,1782483050000,-553.25181371,0.00040241,30]
[426498384,1782483572000,1000.0,0.00024698,30]
[426498409,1782483950000,2832.59,0.0003013,30]
[426498643,1782484238000,-151.0,0.0004,2]
[426498642,1782484238000,-388.0,0.0004,2]
[426498641,1782484238000,-151.0,0.00039,2]
[426498637,1782484238000,-186.0,0.00038442,2]
[426498626,1782484238000,-500.0,0.00035979,32]
[426498631,1782484238000,-262.97162063,0.00037059,38]
[426498621,1782484238000,-500.0,0.00024646,2]
[426498628,1782484238000,-151.0,0.00036,2]
[426498627,1782484238000,-163.0,0.00035994,120]
[426498622,1782484238000,-155.1482,0.00029625,2]
[426498629,1782484238000,-163.0,0.00036,2]
[426498630,1782484238000,-151.0,0.00037,2]
[426498618,1782484238000,-172.0,0.0002297,2]
[426498625,1782484238000,-500.0,0.00034931,29]
[426498623,1782484238000,-300.0,0.00030137,2]
[426498632,1782484238000,-269.14,0.00037163,2]
[426498619,1782484238000,-551.72,0.00024646,2]
[426498613,1782484238000,-2493.97020398,0.00011863,2]
[426498620,1782484238000,-185.846,0.00024646,7]
[426498617,1782484238000,-152.67,0.00019178,2]
[426498616,1782484238000,-161.69283176,0.00013698,2]
[426498614,1782484238000,-216.49975,0.00011863,2]
[426498612,1782484238000,-1324.39859859,0.00011744,2]
[426498615,1782484238000,-312.66322127,0.000126,7]
[426498624,1782484238000,-417.15472785,0.00031115,2]
[426498636,1782484238000,-500.0,0.00038441,30]
[426498657,1782484238000,-2204.06976166,0.00040138,31]
[426498640,1782484238000,-388.0,0.00039,2]
[426498665,1782484238000,-297.15030776,0.00040138,31]
[426498664,1782484238000,-599.87549291,0.00040138,31]
[426498663,1782484238000,-500.0,0.00040138,31]
[426498660,1782484238000,-500.0,0.00040138,31]
[426498662,1782484238000,-2204.06976166,0.00040138,31]
[426498661,1782484238000,-500.0,0.00040138,31]
[426498655,1782484238000,-2204.06976166,0.00040138,31]
[426498638,1782484238000,-1420.0,0.00038442,2]
[426498658,1782484238000,-685.16532399,0.00040138,31]
[426498656,1782484238000,-2204.06976166,0.00040138,31]
[426498651,1782484238000,-2204.06976166,0.00040138,31]
[426498649,1782484238000,-2204.06976166,0.00040138,31]
[426498659,1782484238000,-1518.90443767,0.00040138,31]
[426498654,1782484238000,-2204.06976166,0.00040138,31]
[426498652,1782484238000,-2204.06976166,0.00040138,31]
[426498633,1782484238000,-150.9835213,0.00037336,2]
[426498634,1782484238000,-151.0,0.00038,2]
[426498639,1782484238000,-374.11390633,0.00038568,15]
[426498646,1782484238000,-2204.06976166,0.00040138,31]
[426498635,1782484238000,-1000.0,0.00038356,120]
[426498648,1782484238000,-2204.06976166,0.00040138,31]
[426498644,1782484238000,-1034.0,0.0004,120]
[426498645,1782484238000,-668.73698181,0.00040103,12]
[426498653,1782484238000,-2204.06976166,0.00040138,31]
[426498650,1782484238000,-2204.06976166,0.00040138,31]
[426498647,1782484238000,-232.23217703,0.00040138,31]
[426498709,1782484243000,-1906.9194539,0.00040138,31]
[426498710,1782484243000,-960.11184028,0.00040138,31]
[426498707,1782484243000,-4632.97,0.00039,120]
[426498732,1782484247000,-1243.95792138,0.00040138,31]
[426498731,1782484247000,-3443.64583682,0.00040039,28]
[426498733,1782484247000,-2204.06976166,0.00040138,31]
[426498734,1782484247000,-2204.06976166,0.00040138,31]
[426498736,1782484247000,-2204.06976166,0.00040138,31]
[426498746,1782484247000,-69750.92405833,0.00040139,120]
[426498738,1782484247000,-162.56252392,0.00040138,31]
[426498745,1782484247000,-2351.00774578,0.00040138,31]
[426498735,1782484247000,-2204.06976166,0.00040138,31]
[426498744,1782484247000,-2351.00774578,0.00040138,31]
[426498739,1782484247000,-2351.00774578,0.00040138,31]
[426498741,1782484247000,-2351.00774578,0.00040138,31]
[426498740,1782484247000,-2351.00774578,0.00040138,31]
[426498742,1782484247000,-2351.00774578,0.00040138,31]
[426498743,1782484247000,-2351.00774578,0.00040138,31]
[426498737,1782484247000,-2351.00774578,0.00040138,31]
[426498747,1782484347000,560.0,0.00029116,30]
[426498748,1782484482000,160.0,0.00029116,30]
[426498749,1782484583000,417.15472785,0.00029116,30]
[426498774,1782484775000,3209.76313422,0.0001,2]
[426498775,1782484863000,318.08752661,0.0001,2]
[426498776,1782485223000,500.0,0.0003,120]
[426498820,1782485432000,-232.93167823,0.00026466,20]
[426498822,1782485432000,-486.78936831,0.00029836,2]
[426498821,1782485432000,-4496.56209261,0.00029836,2]
[426498823,1782485432000,-16.64853908,0.00029836,2]
[426498825,1782485432000,-300.0,0.00032,120]
[426498827,1782485432000,-300.0,0.00034,120]
[426498828,1782485432000,-291.0,0.00036,2]
[426498826,1782485432000,-5000.0,0.00033219,2]
[426498824,1782485432000,-151.0,0.00030137,6]
[426498833,1782485432000,-291.0,0.00038,2]
[426498829,1782485432000,-161.311337,0.00036,2]
[426498831,1782485432000,-1000.0,0.00036811,30]
[426498830,1782485432000,-300.0,0.00036,120]
[426498835,1782485432000,-3283.110363,0.00038239,2]
[426498837,1782485432000,-291.0,0.00039,2]
[426498836,1782485432000,-1026.58654549,0.00038356,120]
[426498834,1782485432000,-300.0,0.00038,120]
[426498838,1782485432000,-1828.75452574,0.0003932,2]
[426498832,1782485432000,-291.0,0.00037,2]
[426498910,1782485438000,-3924.22889829,0.00038927,2]
[426499007,1782485440000,-489.22757222,0.00039319,15]
[426499001,1782485440000,-1075.77110171,0.00038927,2]
[426499013,1782485440000,-500.0,0.00039319,15]
[426499005,1782485440000,-500.0,0.00039319,15]
[426499011,1782485440000,-500.0,0.00039319,15]
[426499014,1782485440000,-500.0,0.00039319,15]
[426499003,1782485440000,-500.0,0.00039319,15]
[426499016,1782485440000,-500.0,0.00039319,15]
[426499022,1782485440000,-295.91725659,0.00039319,15]
[426499018,1782485440000,-500.0,0.00039319,15]
[426499020,1782485440000,-502.26457027,0.00039319,15]
[426499041,1782485440000,-100.99516023,0.00039319,15]
[426499039,1782485440000,-160.08291977,0.00039319,15]
[426499009,1782485440000,-233.31949921,0.00039319,15]
[426499333,1782485443000,-274.4696311,0.00039319,15]
[426499340,1782485443000,-124.53520867,0.00039319,15]
[426499342,1782485443000,-500.0,0.00039319,15]
[426499345,1782485443000,-500.0,0.00039319,15]
[426499348,1782485443000,-500.0,0.00039319,15]
[426499350,1782485443000,-500.0,0.00039319,15]
[426499352,1782485443000,-500.0,0.00039319,15]
[426499354,1782485443000,-79.99739778,0.00039319,15]
[426499346,1782485443000,-500.0,0.00039319,15]
[426499752,1782485446000,-420.00260222,0.00039319,15]
[426499749,1782485446000,-3706.38,0.00039,120]
[426499764,1782485446000,-150.37184109,0.0003932,2]
[426499758,1782485446000,-540.86552184,0.00039319,15]
[426499760,1782485446000,-1034.06374037,0.0003932,2]
[426499756,1782485446000,-500.0,0.00039319,15]
[426499754,1782485446000,-416.08813557,0.00039319,15]
[426499788,1782485447000,-1597.21588728,0.00039419,15]
[426499767,1782485447000,-1597.21588728,0.00039419,15]
[426499769,1782485447000,-1597.21588728,0.00039419,15]
[426499771,1782485447000,-1597.21588728,0.00039419,15]
[426499773,1782485447000,-1597.21588728,0.00039419,15]
[426499793,1782485447000,-1597.21588728,0.00039419,15]
[426499775,1782485447000,-1597.21588728,0.00039419,15]
[426499779,1782485447000,-1597.21588728,0.00039419,15]
[426499777,1782485447000,-1597.21588728,0.00039419,15]
[426499781,1782485447000,-1597.21588728,0.00039419,15]
[426499785,1782485447000,-1597.21588728,0.00039419,15]
[426499825,1782485447000,-56657.91837735,0.00039422,7]
[426499801,1782485447000,-5583.59794909,0.00039422,7]
[426499799,1782485447000,-1597.21588728,0.00039419,15]
[426499797,1782485447000,-1597.21588728,0.00039419,15]
[426499783,1782485447000,-1597.21588728,0.00039419,15]
[426499787,1782485447000,-1597.21588728,0.00039419,15]
[426499823,1782485447000,-3120.45965636,0.00039422,7]
[426499795,1782485447000,-1597.21588728,0.00039419,15]
[426499791,1782485447000,-1597.21588728,0.00039419,15]
[426500904,1782485523000,219.59622032,0.00029127,120]
[426500910,1782485737000,2404.83939712,0.00030136,120]
[426500911,1782485780000,306.15237016,2.01e-05,2]
[426500912,1782485826000,430.91070585,0.00010618,2]
[426500914,1782485853000,4034.08030219,7.6e-05,2]
[426500913,1782485853000,20735.08626316,7.6e-05,2]
[426500915,1782485857000,11381.39155893,0.0001,2]
[426500916,1782485861000,3493.42293088,0.0001,2]
[426500917,1782485861000,-241.47141674,0.00012,2]
[426500918,1782485864000,767.80905069,8.6e-05,2]
[426500949,1782486214000,1000.0,0.00027349,30]
[426500969,1782486402000,417.15472785,0.0002913,30]
[426501031,1782486632000,-258.3382864,0.00017998,2]
[426501039,1782486632000,-1914.8498744,0.00021,2]
[426501037,1782486632000,-2966.80675948,0.00018,2]
[426501035,1782486632000,-500.0,0.00017999,2]
[426501033,1782486632000,-413.40229129,0.00017999,2]
[426501021,1782486632000,-241.47,0.000137,2]
[426501019,1782486632000,-7847.21654661,0.00013,2]
[426501017,1782486632000,-5440.86968305,0.00012,2]
[426501027,1782486632000,-321.86071714,0.00017998,2]
[426501025,1782486632000,-254.399999,0.00015,2]
[426501023,1782486632000,-322.48143924,0.00015,2]
[426501015,1782486632000,-3539.32856517,0.000118,5]
[426501012,1782486632000,-213.1965,0.00011682,2]
[426501041,1782486632000,-300.0,0.00030137,2]
[426501029,1782486632000,-500.0,0.00017998,2]
[426501051,1782486632000,-233.0,0.00038,2]
[426501010,1782486632000,-409.04085508,0.00011565,13]
[426501056,1782486632000,-3135.65569588,0.00039305,2]
[426501052,1782486632000,-230.0,0.00038,2]
[426501072,1782486632000,-1325.68918645,0.00039404,15]
[426501068,1782486632000,-1325.68918645,0.00039404,15]
[426501066,1782486632000,-1325.68918645,0.00039404,15]
[426501064,1782486632000,-1325.68918645,0.00039404,15]
[426501075,1782486632000,-410.3385739,0.00039404,15]
[426501062,1782486632000,-1325.68918645,0.00039404,15]
[426501073,1782486632000,-1325.68918645,0.00039404,15]
[426501070,1782486632000,-1325.68918645,0.00039404,15]
[426501046,1782486632000,-233.0,0.00037,2]
[426501045,1782486632000,-233.0,0.00036,2]
[426501043,1782486632000,-153.4696311,0.00036,2]
[426501060,1782486632000,-1325.68918645,0.00039404,15]
[426501059,1782486632000,-563.2107345,0.00039404,15]
[426501055,1782486632000,-233.0,0.00039,2]
[426501058,1782486632000,-762.47845195,0.00039404,15]
[426501048,1782486632000,-745.0,0.00038,120]
[426501179,1782486638000,-579.49502104,0.00039404,15]
[426501180,1782486638000,-335.85559151,0.00039404,15]
[426501181,1782486638000,-1322.59173372,0.00039404,15]
[426501182,1782486638000,-3.09745273,0.00039404,15]
[426501183,1782486638000,-1325.68918645,0.00039404,15]
[426501184,1782486638000,-1325.68918645,0.00039404,15]
[426501187,1782486638000,-1325.68918644,0.00039404,15]
[426501185,1782486638000,-1325.68918645,0.00039404,15]
[426501189,1782486638000,-1325.68918644,0.00039404,15]
[426501190,1782486638000,-1325.68918644,0.00039404,15]
[426501188,1782486638000,-1325.68918644,0.00039404,15]
[426501186,1782486638000,-1325.68918645,0.00039404,15]
[426501193,1782486639000,-1325.68918644,0.00039404,15]
[426501195,1782486639000,-1325.68918644,0.00039404,15]
[426501197,1782486639000,-1037.7384702,0.00039404,15]
[426501196,1782486639000,-1325.68918644,0.00039404,15]
[426501194,1782486639000,-1325.68918644,0.00039404,15]
[426501191,1782486639000,-1325.68918644,0.00039404,15]
[426501192,1782486639000,-1325.68918644,0.00039404,15]
[426501223,1782486643000,-287.95071624,0.00039404,15]
[426501224,1782486643000,-1361.34926727,0.00039405,7]
[426501354,1782486647000,-4344.18230492,0.00039405,7]
[426501349,1782486647000,-10170.47089531,0.00039405,7]
[426501346,1782486647000,-2021.85786577,0.00039011,13]
[426501612,1782487832000,-264.5596509,0.00037669,30]
[426501602,1782487832000,-588.64774717,0.00037669,30]
[426501591,1782487832000,-1225.7783047,0.00034931,30]
[426501600,1782487832000,-1092.8420166,0.00037658,2]
[426501598,1782487832000,-186.0,0.00037,2]
[426501596,1782487832000,-186.0,0.00036,2]
[426501594,1782487832000,-500.0,0.00035284,42]
[426501792,1782487839000,-251.87870804,0.00039404,15]
[426501790,1782487839000,-500.0,0.00039404,15]
[426501800,1782487839000,-500.0,0.00039404,15]
[426501798,1782487839000,-500.0,0.00039404,15]
[426501780,1782487839000,-500.0,0.00039404,15]
[426501786,1782487839000,-500.0,0.00039404,15]
[426501796,1782487839000,-500.0,0.00039404,15]
[426501776,1782487839000,-500.0,0.00039404,15]
[426501794,1782487839000,-500.0,0.00039404,15]
[426501782,1782487839000,-500.0,0.00039404,15]
[426501784,1782487839000,-500.0,0.00039404,15]
[426501803,1782487839000,-500.0,0.00039404,15]
[426501821,1782487839000,-500.0,0.00039404,15]
[426501807,1782487839000,-500.0,0.00039404,15]
[426501805,1782487839000,-500.0,0.00039404,15]
[426501811,1782487839000,-500.0,0.00039404,15]
[426501813,1782487839000,-500.0,0.00039404,15]
[426501809,1782487839000,-500.0,0.00039404,15]
[426501817,1782487839000,-500.0,0.00039404,15]
[426501815,1782487839000,-500.0,0.00039404,15]
[426501826,1782487839000,-500.0,0.00039404,15]
[426501819,1782487839000,-500.0,0.00039404,15]
[426501825,1782487839000,-500.0,0.00039404,15]
[426501832,1782487839000,-500.0,0.00039404,15]
[426501830,1782487839000,-500.0,0.00039404,15]
[426501788,1782487839000,-500.0,0.00039404,15]
[426501770,1782487839000,-500.0,0.00039404,15]
[426501727,1782487839000,-186.0,0.00038,2]
[426501773,1782487839000,-500.0,0.00039404,15]
[426501828,1782487839000,-500.0,0.00039404,15]
[426501723,1782487839000,-407.5209075,0.00037782,2]
[426501729,1782487839000,-346.53440763,0.00038927,2]
[426501725,1782487839000,-574.0052128,0.00037795,120]
[426501721,1782487839000,-146.79260193,0.00037669,30]
[426501731,1782487839000,-323.26949045,0.00038927,2]
[426501738,1782487839000,-186.0,0.00039,2]
[426501733,1782487839000,-255.8973598,0.00038927,2]
[426501736,1782487839000,-300.0,0.0003895,55]
[426501744,1782487839000,-624.15451644,0.00039335,11]
[426501742,1782487839000,-3186.16888163,0.00039305,2]
[426501746,1782487839000,-269.75288,0.00039402,120]
[426501775,1782487839000,-500.0,0.00039404,15]
[426501740,1782487839000,-2965.1,0.00039,30]
[426501750,1782487839000,-500.0,0.00039404,30]
[426501753,1782487839000,-500.0,0.00039404,30]
[426501757,1782487839000,-500.0,0.00039404,15]
[426501755,1782487839000,-500.0,0.00039404,15]
[426501759,1782487839000,-500.0,0.00039404,15]
[426501761,1782487839000,-500.0,0.00039404,15]
[426501763,1782487839000,-500.0,0.00039404,15]
[426501765,1782487839000,-500.0,0.00039404,15]
[426501767,1782487839000,-500.0,0.00039404,15]
[426501769,1782487839000,-500.0,0.00039404,15]
[426501771,1782487839000,-500.0,0.00039404,15]
[426501772,1782487839000,-500.0,0.00039404,15]
[426501748,1782487839000,-500.0,0.00039403,30]
[426501823,1782487839000,-500.0,0.00039404,15]
[426501778,1782487839000,-500.0,0.00039404,15]
[426501849,1782487839000,-13.60840399,0.00039405,120]
[426501896,1782487839000,-151.0,0.00039435,120]
[426501894,1782487839000,-285.827167,0.00039434,120]
[426501899,1782487839000,-151.0,0.00039435,120]
[426501901,1782487839000,-151.0,0.00039435,120]
[426501905,1782487839000,-151.0,0.00039436,120]
[426501907,1782487839000,-151.0,0.00039436,120]
[426501903,1782487839000,-151.0,0.00039436,120]
[426501920,1782487839000,-151.0,0.00039437,120]
[426501909,1782487839000,-356.671022,0.00039436,120]
[426501914,1782487839000,-356.671022,0.00039436,120]
[426501912,1782487839000,-356.671022,0.00039436,120]
[426501911,1782487839000,-356.671022,0.00039436,120]
[426501897,1782487839000,-151.0,0.00039435,120]
[426501918,1782487839000,-151.0,0.00039437,120]
[426501916,1782487839000,-151.0,0.00039437,120]
[426501924,1782487839000,-151.0,0.00039437,120]
[426501928,1782487839000,-151.0,0.00039437,120]
[426501926,1782487839000,-151.0,0.00039437,120]
[426501930,1782487839000,-151.0,0.00039437,120]
[426501934,1782487839000,-389.04,0.00039525,3]
[426501932,1782487839000,-151.0,0.00039437,120]
[426501938,1782487839000,-583.58,0.00039525,3]
[426501943,1782487839000,-285.827167,0.00039535,120]
[426501941,1782487839000,-285.827167,0.00039535,120]
[426501939,1782487839000,-285.827167,0.00039535,120]
[426501846,1782487839000,-151.0,0.00039405,120]
[426501922,1782487839000,-233.498487,0.00039437,120]
[426501898,1782487839000,-151.0,0.00039435,120]
[426501936,1782487839000,-194.52,0.00039525,3]
[426501893,1782487839000,-285.827167,0.00039434,120]
[426501895,1782487839000,-151.0,0.00039435,120]
[426501834,1782487839000,-500.0,0.00039404,15]
[426501837,1782487839000,-22105.5969571,0.00039405,7]
[426501851,1782487839000,-137.39159601,0.00039405,120]
[426501853,1782487839000,-356.671022,0.00039405,120]
[426501842,1782487839000,-151.0,0.00039405,120]
[426501840,1782487839000,-151.0,0.00039405,120]
[426501838,1782487839000,-151.0,0.00039405,120]
[426501857,1782487839000,-356.671022,0.00039405,120]
[426501855,1782487839000,-356.671022,0.00039405,120]
[426501863,1782487839000,-285.827167,0.00039405,120]
[426501861,1782487839000,-285.827167,0.00039405,120]
[426501866,1782487839000,-285.827167,0.00039405,120]
[426501844,1782487839000,-151.0,0.00039405,120]
[426501874,1782487839000,-356.671022,0.00039434,120]
[426501859,1782487839000,-356.671022,0.00039405,120]
[426501876,1782487839000,-356.671022,0.00039434,120]
[426501878,1782487839000,-356.671022,0.00039434,120]
[426501868,1782487839000,-285.827167,0.00039405,120]
[426501872,1782487839000,-356.671022,0.00039434,120]
[426501888,1782487839000,-285.827167,0.00039434,120]
[426501880,1782487839000,-285.827167,0.00039434,120]
[426501882,1782487839000,-285.827167,0.00039434,120]
[426501891,1782487839000,-285.827167,0.00039434,120]
[426501884,1782487839000,-285.827167,0.00039434,120]
[426501886,1782487839000,-285.827167,0.00039434,120]
[426501870,1782487839000,-417.15472785,0.00039412,2]
[426501945,1782487840000,-285.827167,0.00039535,120]
[426501947,1782487840000,-2008.15857756,0.00039535,120]
[426501949,1782487840000,-4093.60573274,0.00039535,120]
[426501953,1782487840000,-4128.37554833,0.00039535,120]
[426501951,1782487840000,-469.58372368,0.00039535,120]
[426502130,1782487842000,-5782.05926109,0.00039535,120]
[426502137,1782487844000,-413.78128082,0.00039535,120]
[426502135,1782487844000,-15381.57239846,0.00039535,120]
[426502136,1782487844000,-20122.91787373,0.00039535,120]
[426502156,1782487847000,-1000.0,0.00039535,120]
[426502154,1782487847000,-1000.0,0.00039535,120]
[426502157,1782487847000,-1000.0,0.00039535,120]
[426502158,1782487847000,-847.29917235,0.00039535,120]
[426502161,1782487847000,-1000.0,0.00039535,120]
[426502159,1782487847000,-152.70082765,0.00039535,120]
[426502160,1782487847000,-1000.0,0.00039535,120]
[426502168,1782487847000,-7793.79545052,0.00039535,120]
[426502163,1782487847000,-1000.0,0.00039535,120]
[426502169,1782487847000,-3147.0,0.00039535,120]
[426502166,1782487847000,-1000.0,0.00039535,120]
[426502165,1782487847000,-1000.0,0.00039535,120]
[426502167,1782487847000,-1037.0,0.00039535,120]
[426502162,1782487847000,-1000.0,0.00039535,120]
[426502164,1782487847000,-1000.0,0.00039535,120]
[426502182,1782487971000,1667.23,0.00030137,30]
[426502184,1782488015000,0.01230492,0.0003,2]
[426502183,1782488015000,4344.17,0.0003,2]
[426502185,1782488072000,1595.6,0.00030137,30]
[426502187,1782488221000,417.15472785,0.00029134,30]
[426502189,1782488223000,-498.50949503,0.0001,2]
[426502188,1782488223000,5323.29615731,0.0001,2]
[426502190,1782488224000,-500.0,0.0001,2]
[426502191,1782488225000,-235.00803417,0.0001,2]
[426502192,1782488226000,-500.0,0.0001,2]
[426502193,1782488227000,-264.99196583,0.0001,2]
[426502194,1782488228000,-500.0,0.0001,2]
[426502195,1782488229000,-263.27971657,0.0001,2]
[426502201,1782488505000,-1577.75752523,0.0001,2]
[426502200,1782488505000,-7835.77765058,0.0001,2]
[426502198,1782488505000,-5000.0,9.9e-05,2]
[426502199,1782488505000,-300.0,9.999e-05,2]
[426502202,1782488505000,-156.35577075,0.0001,2]
[426502260,1782488735000,6503.7219262,0.0001,2]
[426502283,1782488823000,644.51884289,0.0001,2]
[426502326,1782488939000,-4344.15769508,0.0003,2]
[426502327,1782488939000,-151.0,0.00030137,6]
[426502384,1782489031000,-549.60045005,0.00030148,7]
[426502392,1782489031000,-151.0,0.00035999,7]
[426502380,1782489031000,-646.62271322,0.00030148,7]
[426502377,1782489031000,-646.62271322,0.00030148,7]
[426502390,1782489031000,-151.0,0.00035999,7]
[426502382,1782489031000,-97.02226317,0.00030148,7]
[426502388,1782489031000,-216.403702,0.00033054,2]
[426502398,1782489031000,-157.0,0.00036,2]
[426502386,1782489031000,-1724.32723522,0.00030148,7]
[426502401,1782489031000,-154.0,0.00036,2]
[426502403,1782489031000,-162.91194034,0.00036173,3]
[426502407,1782489031000,-157.0,0.00037,2]
[426502405,1782489031000,-163.792664,0.00036514,2]
[426502409,1782489031000,-163.0,0.00037,2]
[426502411,1782489031000,-1000.0,0.00037063,30]
[426502418,1782489031000,-8325.10831096,0.00038811,2]
[426502414,1782489031000,-5455.7092172,0.0003714,2]
[426502416,1782489031000,-157.0,0.00038,2]
[426502395,1782489031000,-151.0,0.00035999,7]
[426502422,1782489032000,-433.45811007,0.00038811,2]
[426502424,1782489032000,-269.08724583,0.00038811,2]
[426502420,1782489032000,-450.5909717,0.00038811,2]
[426502516,1782489038000,-1181.75226186,0.00038,4]
[426502514,1782489038000,-1631.64524447,0.00038,4]
[426502519,1782489038000,-18071.27268404,0.00038811,2]
[426502518,1782489038000,-18219.54584597,0.00038811,2]
[426502558,1782489040000,-309.63440206,0.00038811,2]
[426502556,1782489040000,-365.40823413,0.00038811,2]
[426502557,1782489040000,-1585.67552683,0.00038811,2]
[426502600,1782489049000,-500.0,0.00038911,15]
[426502596,1782489049000,-500.0,0.00038911,15]
[426502598,1782489049000,-500.0,0.00038911,15]
[426502588,1782489049000,-10754.27273494,0.00038811,2]
[426502597,1782489049000,-500.0,0.00038911,15]
[426502590,1782489049000,-48745.55850311,0.00038811,2]
[426502595,1782489049000,-500.0,0.00038911,15]
[426502594,1782489049000,-500.0,0.00038911,15]
[426502592,1782489049000,-500.0,0.00038911,15]
[426502593,1782489049000,-500.0,0.00038911,15]